[Event "*** Titled Tuesday Blitz"]
[Site "Chess.com"]
[Date "2020.01.07"]
[Round "3"]
[White "Vegan4future"]
[Black "GadimbayliA"]
[Result "0-1"]
[WhiteElo "2428"]
[BlackElo "2961"]
[TimeControl "180+2"]
[EndTime "13:39:18 PST"]
[Termination "GadimbayliA won by resignation"]

1. d4 {[%clk 0:03:01.9]} 1... d5 {[%clk 0:02:59]} 2. c4 {[%clk 0:03:02.7]} 2...
e5 {[%clk 0:03:00.2]} 3. dxe5 {[%clk 0:02:59.9]} 3... d4 {[%clk 0:03:02.1]} 4.
a3 {[%clk 0:03:01.2]} 4... Nc6 {[%clk 0:03:01.3]} 5. Nf3 {[%clk 0:03:01.3]} 5...
Nge7 {[%clk 0:03:02.3]} 6. e3 {[%clk 0:03:01.1]} 6... Bg4 {[%clk 0:03:01.7]} 7.
Be2 {[%clk 0:03:01]} 7... dxe3 {[%clk 0:03:01]} 8. Qxd8+ {[%clk 0:03:02.9]} 8...
Rxd8 {[%clk 0:03:02.8]} 9. Bxe3 {[%clk 0:03:04]} 9... Bxf3 {[%clk 0:03:04.2]}
10. Bxf3 {[%clk 0:03:05]} 10... Nxe5 {[%clk 0:03:05.6]} 11. Bxb7 {[%clk
0:02:59.5]} 11... Nxc4 {[%clk 0:03:05.8]} 12. Bxa7 {[%clk 0:02:59.4]} 12... c6
{[%clk 0:02:37.6]} 13. Bc5 {[%clk 0:02:44.2]} 13... Rd7 {[%clk 0:02:03.6]} 14.
Ba6 {[%clk 0:02:36]} 14... Nxb2 {[%clk 0:02:04.3]} 15. O-O {[%clk 0:02:36.7]}
15... Nd3 {[%clk 0:01:49.7]} 16. Bxd3 {[%clk 0:02:19.6]} 16... Rxd3 {[%clk
0:01:51.6]} 17. a4 {[%clk 0:02:20.8]} 17... Nd5 {[%clk 0:01:49.6]} 18. Re1+
{[%clk 0:02:20.4]} 18... Kd7 {[%clk 0:01:48.3]} 19. Bxf8 {[%clk 0:02:18.2]}
19... Rxf8 {[%clk 0:01:50.2]} 20. Na3 {[%clk 0:02:15.3]} 20... Rc3 {[%clk
0:01:51.5]} 21. Nb1 {[%clk 0:02:04.7]} 21... Rc5 {[%clk 0:01:46.9]} 22. Nd2
{[%clk 0:02:04.6]} 22... Ra8 {[%clk 0:01:47.6]} 23. Nb3 {[%clk 0:01:58.5]} 23...
Rc3 {[%clk 0:01:45.7]} 24. Reb1 {[%clk 0:01:58.2]} 24... c5 {[%clk 0:01:41.6]}
25. a5 {[%clk 0:01:58]} 25... Ra6 {[%clk 0:01:31.8]} 26. g3 {[%clk 0:01:52.8]}
26... Kc6 {[%clk 0:01:26.4]} 27. Nd2 {[%clk 0:01:44.9]} 27... Nb4 {[%clk
0:01:17.4]} 28. Ne4 {[%clk 0:01:44.4]} 28... Rc4 {[%clk 0:01:16.2]} 29. Nd2
{[%clk 0:01:28.5]} 29... Rc2 {[%clk 0:01:12.2]} 30. Nf3 {[%clk 0:01:24.5]} 30...
Kb5 {[%clk 0:01:08.9]} 31. Ne5 {[%clk 0:01:18]} 31... f6 {[%clk 0:01:07.3]} 32.
Nf7 {[%clk 0:01:13.9]} 32... Rd2 {[%clk 0:01:04.4]} 33. Rd1 {[%clk 0:01:06.4]}
33... Rxd1+ {[%clk 0:00:52]} 34. Rxd1 {[%clk 0:01:08.3]} 34... Kxa5 {[%clk
0:00:53.3]} 35. Rd7 {[%clk 0:01:01.3]} 35... c4 {[%clk 0:00:50.8]} 36. Nd6
{[%clk 0:00:56.5]} 36... c3 {[%clk 0:00:51.9]} 37. Nc4+ {[%clk 0:00:56.3]} 37...
Kb5 {[%clk 0:00:53.1]} 38. Ne3 {[%clk 0:00:57.3]} 38... g5 {[%clk 0:00:43.9]}
39. Rb7+ {[%clk 0:00:44.6]} 39... Rb6 {[%clk 0:00:40.5]} 40. Rxh7 {[%clk
0:00:40.9]} 40... c2 {[%clk 0:00:39.9]} 41. Nxc2 {[%clk 0:00:41.3]} 41... Nxc2
{[%clk 0:00:41.8]} 42. h4 {[%clk 0:00:42.9]} 42... g4 {[%clk 0:00:40.2]} 43. Rg7
{[%clk 0:00:38.9]} 43... f5 {[%clk 0:00:39.6]} 44. Kg2 {[%clk 0:00:29]} 44...
Re6 {[%clk 0:00:36.9]} 45. h5 {[%clk 0:00:28.7]} 45... Ne1+ {[%clk 0:00:36.3]}
46. Kf1 {[%clk 0:00:29]} 46... Nf3 {[%clk 0:00:37.6]} 47. Rb7+ {[%clk
0:00:25.6]} 47... Kc6 {[%clk 0:00:38.5]} 48. Rb1 {[%clk 0:00:27.5]} 48... Nd2+
{[%clk 0:00:38.6]} 0-1

[Event "*** Titled Tuesday Blitz"]
[Site "Chess.com"]
[Date "2020.01.07"]
[Round "3"]
[White "TwentyHoursADay"]
[Black "IMUltimateBeast"]
[Result "0-1"]
[WhiteElo "2405"]
[BlackElo "2628"]
[TimeControl "180+2"]
[EndTime "13:39:18 PST"]
[Termination "IMUltimateBeast won on time"]

1. c4 {[%clk 0:03:01.2]} 1... e5 {[%clk 0:03:00.4]} 2. g3 {[%clk 0:03:01.8]}
2... Nc6 {[%clk 0:02:55.4]} 3. Nc3 {[%clk 0:03:02.5]} 3... Nge7 {[%clk
0:02:55.9]} 4. Bg2 {[%clk 0:03:03.3]} 4... g6 {[%clk 0:02:55.8]} 5. e4 {[%clk
0:03:01.6]} 5... Bg7 {[%clk 0:02:57]} 6. Nge2 {[%clk 0:03:03]} 6... O-O {[%clk
0:02:58.6]} 7. O-O {[%clk 0:03:04.7]} 7... d6 {[%clk 0:03:00.1]} 8. d3 {[%clk
0:03:06.3]} 8... h6 {[%clk 0:02:56.6]} 9. f4 {[%clk 0:03:06]} 9... Be6 {[%clk
0:02:54.4]} 10. Nd5 {[%clk 0:02:46.9]} 10... Qd7 {[%clk 0:02:37.2]} 11. fxe5
{[%clk 0:02:34.3]} 11... dxe5 {[%clk 0:02:34.6]} 12. Bxh6 {[%clk 0:02:18.1]}
12... Nxd5 {[%clk 0:02:30.9]} 13. Bxg7 {[%clk 0:02:05.1]} 13... Ne3 {[%clk
0:02:30.3]} 14. Qd2 {[%clk 0:02:06.5]} 14... Kxg7 {[%clk 0:02:25]} 15. Qxe3
{[%clk 0:02:06.7]} 15... Rad8 {[%clk 0:02:20.6]} 16. Rad1 {[%clk 0:01:29.8]}
16... Nd4 {[%clk 0:02:21.3]} 17. Nxd4 {[%clk 0:01:28.3]} 17... Qxd4 {[%clk
0:02:21.2]} 18. Qxd4 {[%clk 0:01:29.4]} 18... Rxd4 {[%clk 0:02:22.7]} 19. Bf3
{[%clk 0:01:15.3]} 19... Rfd8 {[%clk 0:02:22.2]} 20. Be2 {[%clk 0:01:16.7]}
20... c5 {[%clk 0:02:20.5]} 21. g4 {[%clk 0:01:05.8]} 21... g5 {[%clk
0:02:19.1]} 22. Kg2 {[%clk 0:01:01.9]} 22... a5 {[%clk 0:02:16.7]} 23. a3 {[%clk
0:01:02.1]} 23... Rb8 {[%clk 0:02:15.6]} 24. Rb1 {[%clk 0:01:00.5]} 24... b5
{[%clk 0:02:02.7]} 25. cxb5 {[%clk 0:01:00.4]} 25... Rxb5 {[%clk 0:02:03.2]} 26.
Rfc1 {[%clk 0:01:01.9]} 26... Ba2 {[%clk 0:02:01.7]} 27. Ra1 {[%clk 0:00:58.9]}
27... Rxb2 {[%clk 0:02:02.6]} 28. Kf3 {[%clk 0:00:58.3]} 28... c4 {[%clk
0:02:03]} 29. dxc4 {[%clk 0:00:48.7]} 29... Rdd2 {[%clk 0:02:04.1]} 30. Re1
{[%clk 0:00:45.6]} 30... Rb3+ {[%clk 0:01:50.7]} 31. Kf2 {[%clk 0:00:44]} 31...
Rh3 {[%clk 0:01:49.6]} 32. Rac1 {[%clk 0:00:31.5]} 32... Rxh2+ {[%clk
0:01:49.7]} 33. Ke3 {[%clk 0:00:32.8]} 33... Rd4 {[%clk 0:01:31.1]} 34. c5
{[%clk 0:00:33.4]} 34... Rh3+ {[%clk 0:01:29.7]} 35. Bf3 {[%clk 0:00:25.4]}
35... Ra4 {[%clk 0:01:25.5]} 36. Rc3 {[%clk 0:00:25]} 36... f5 {[%clk
0:01:08.6]} 37. Rh1 {[%clk 0:00:07]} 37... fxg4 {[%clk 0:01:04.7]} 38. Rxh3
{[%clk 0:00:07.8]} 38... gxh3 {[%clk 0:01:05.7]} 39. Bg4 {[%clk 0:00:06.1]}
39... h2 {[%clk 0:01:05.2]} 40. Rc1 {[%clk 0:00:06.8]} 40... Rxa3+ {[%clk
0:01:06]} 41. Kf2 {[%clk 0:00:08.2]} 41... Rc3 {[%clk 0:01:02]} 42. Rh1 {[%clk
0:00:06.6]} 42... Rxc5 {[%clk 0:01:02]} 43. Ke3 {[%clk 0:00:05.5]} 43... Rc3+
{[%clk 0:01:02.4]} 44. Kd2 {[%clk 0:00:06.8]} 44... Rg3 {[%clk 0:01:01.4]} 45.
Bf5 {[%clk 0:00:06.3]} 45... Rg2+ {[%clk 0:01:01.4]} 46. Ke3 {[%clk 0:00:07.7]}
46... Bc4 {[%clk 0:01:00.5]} 47. Kf3 {[%clk 0:00:08.6]} 47... Rb2 {[%clk
0:00:59.8]} 48. Kg4 {[%clk 0:00:09.8]} 48... Kf6 {[%clk 0:00:59.5]} 49. Rc1
{[%clk 0:00:11]} 49... a4 {[%clk 0:00:59.4]} 0-1

[Event "*** Titled Tuesday Blitz"]
[Site "Chess.com"]
[Date "2020.01.07"]
[Round "3"]
[White "2nd_life"]
[Black "JustaTrickstar"]
[Result "0-1"]
[WhiteElo "2511"]
[BlackElo "2743"]
[TimeControl "180+2"]
[EndTime "13:39:20 PST"]
[Termination "JustaTrickstar won on time"]

1. e4 {[%clk 0:03:01.9]} 1... d6 {[%clk 0:03:01.2]} 2. d4 {[%clk 0:03:01.9]}
2... Nf6 {[%clk 0:03:01.8]} 3. Nc3 {[%clk 0:03:02.5]} 3... g6 {[%clk 0:03:02.9]}
4. Nf3 {[%clk 0:02:55.9]} 4... Bg7 {[%clk 0:03:04.1]} 5. Be2 {[%clk 0:02:56.9]}
5... O-O {[%clk 0:03:05.3]} 6. O-O {[%clk 0:02:57.6]} 6... a6 {[%clk 0:03:06.8]}
7. a4 {[%clk 0:02:56.6]} 7... Nc6 {[%clk 0:03:07.7]} 8. d5 {[%clk 0:02:50.9]}
8... Nb8 {[%clk 0:03:02.7]} 9. Re1 {[%clk 0:02:49.3]} 9... e6 {[%clk 0:03:03.2]}
10. dxe6 {[%clk 0:02:41.3]} 10... Bxe6 {[%clk 0:03:04]} 11. Nd4 {[%clk
0:02:40.5]} 11... Bd7 {[%clk 0:03:04.1]} 12. Bf1 {[%clk 0:02:27.4]} 12... Nc6
{[%clk 0:03:04.6]} 13. Nde2 {[%clk 0:02:07.8]} 13... Re8 {[%clk 0:02:58.4]} 14.
Nf4 {[%clk 0:02:03.4]} 14... Ne5 {[%clk 0:02:48.9]} 15. f3 {[%clk 0:02:00]}
15... Bc6 {[%clk 0:02:33.3]} 16. Be3 {[%clk 0:01:55.5]} 16... Ned7 {[%clk
0:02:16.7]} 17. Bd4 {[%clk 0:01:51]} 17... Ne5 {[%clk 0:02:07.4]} 18. Qd2 {[%clk
0:01:40.8]} 18... Nfd7 {[%clk 0:02:06.3]} 19. Nfd5 {[%clk 0:01:38.3]} 19... Bxd5
{[%clk 0:01:28.4]} 20. Nxd5 {[%clk 0:01:30.1]} 20... c6 {[%clk 0:01:29.1]} 21.
Nc3 {[%clk 0:01:25.2]} 21... Nc5 {[%clk 0:01:28.4]} 22. Rad1 {[%clk 0:01:20.9]}
22... Qa5 {[%clk 0:00:57.2]} 23. f4 {[%clk 0:00:58.8]} 23... Ng4 {[%clk
0:00:57.9]} 24. Bxg7 {[%clk 0:00:47]} 24... Kxg7 {[%clk 0:00:59.8]} 25. Be2
{[%clk 0:00:43.7]} 25... Nf6 {[%clk 0:01:00.5]} 26. Bf3 {[%clk 0:00:43.4]} 26...
Rad8 {[%clk 0:00:58.3]} 27. b3 {[%clk 0:00:43.2]} 27... Qb4 {[%clk 0:00:55.6]}
28. Qd4 {[%clk 0:00:39.9]} 28... Qxd4+ {[%clk 0:00:55.8]} 29. Rxd4 {[%clk
0:00:41.1]} 29... Ne6 {[%clk 0:00:57.4]} 30. Rd2 {[%clk 0:00:33.3]} 30... Nxf4
{[%clk 0:00:58.3]} 31. Red1 {[%clk 0:00:34.6]} 31... Re6 {[%clk 0:00:57.8]} 32.
g3 {[%clk 0:00:33.3]} 32... Nh3+ {[%clk 0:00:58.1]} 33. Kg2 {[%clk 0:00:31.4]}
33... Ng5 {[%clk 0:00:59]} 34. e5 {[%clk 0:00:28]} 34... Rxe5 {[%clk 0:00:57.8]}
35. Rxd6 {[%clk 0:00:29]} 35... Rxd6 {[%clk 0:00:57.6]} 36. Rxd6 {[%clk
0:00:30.9]} 36... Re3 {[%clk 0:00:41.6]} 37. Rd3 {[%clk 0:00:16.7]} 37... Rxd3
{[%clk 0:00:40.7]} 38. cxd3 {[%clk 0:00:18.6]} 38... Nxf3 {[%clk 0:00:42]} 39.
Kxf3 {[%clk 0:00:19.6]} 39... a5 {[%clk 0:00:43.5]} 40. Kf4 {[%clk 0:00:19.1]}
40... Kf8 {[%clk 0:00:41.4]} 41. Ke5 {[%clk 0:00:08.3]} 41... Ke7 {[%clk
0:00:42.5]} 42. h3 {[%clk 0:00:06.4]} 42... h5 {[%clk 0:00:38.4]} 43. Ne2 {[%clk
0:00:04.2]} 43... Nd7+ {[%clk 0:00:37.8]} 44. Kd4 {[%clk 0:00:03.2]} 44... Kd6
{[%clk 0:00:39.3]} 45. Nc3 {[%clk 0:00:03.6]} 45... Nc5 {[%clk 0:00:40.6]} 46.
Kc4 {[%clk 0:00:03.7]} 46... f5 {[%clk 0:00:41.6]} 0-1

[Event "*** Titled Tuesday Blitz"]
[Site "Chess.com"]
[Date "2020.01.07"]
[Round "3"]
[White "Federtiu"]
[Black "Aleksey_Sorokin"]
[Result "1-0"]
[WhiteElo "2525"]
[BlackElo "2856"]
[TimeControl "180+2"]
[EndTime "13:39:24 PST"]
[Termination "Federtiu won by resignation"]

1. d4 {[%clk 0:03:01.9]} 1... Nf6 {[%clk 0:03:00.3]} 2. c4 {[%clk 0:03:02.3]}
2... e6 {[%clk 0:03:01.2]} 3. Nf3 {[%clk 0:03:01]} 3... d5 {[%clk 0:03:01.5]} 4.
g3 {[%clk 0:03:01.4]} 4... Be7 {[%clk 0:03:00.4]} 5. Bg2 {[%clk 0:03:02.6]} 5...
O-O {[%clk 0:03:01.3]} 6. Nc3 {[%clk 0:03:02.6]} 6... dxc4 {[%clk 0:02:58.1]} 7.
Ne5 {[%clk 0:03:02.9]} 7... Nc6 {[%clk 0:02:58.8]} 8. Nxc6 {[%clk 0:03:00.7]}
8... bxc6 {[%clk 0:02:59.5]} 9. O-O {[%clk 0:03:02]} 9... Nd5 {[%clk 0:02:48.9]}
10. Qa4 {[%clk 0:02:53.6]} 10... Nb6 {[%clk 0:02:30.6]} 11. Qxc6 {[%clk
0:02:47]} 11... Rb8 {[%clk 0:02:31.8]} 12. Bf4 {[%clk 0:02:47.9]} 12... Bd6
{[%clk 0:02:31.3]} 13. Qf3 {[%clk 0:02:40]} 13... Bb7 {[%clk 0:02:30]} 14. Qg4
{[%clk 0:02:30.9]} 14... Bxg2 {[%clk 0:02:28]} 15. Kxg2 {[%clk 0:02:32.8]} 15...
Nd5 {[%clk 0:02:15.7]} 16. Bxd6 {[%clk 0:02:20.2]} 16... Qxd6 {[%clk 0:02:05.3]}
17. Rab1 {[%clk 0:02:01.3]} 17... Qa6 {[%clk 0:01:52.3]} 18. Qf3 {[%clk
0:01:38.8]} 18... Rfd8 {[%clk 0:01:43.6]} 19. a3 {[%clk 0:01:16.1]} 19... Nxc3
{[%clk 0:01:42.8]} 20. bxc3 {[%clk 0:01:18]} 20... Qxa3 {[%clk 0:01:35.7]} 21.
Ra1 {[%clk 0:01:16]} 21... Qd6 {[%clk 0:01:31.6]} 22. Rxa7 {[%clk 0:01:16.1]}
22... h6 {[%clk 0:01:26.6]} 23. Rfa1 {[%clk 0:01:16.2]} 23... Rb3 {[%clk
0:01:22.1]} 24. R1a6 {[%clk 0:01:13.6]} 24... Qd5 {[%clk 0:01:19.4]} 25. e4
{[%clk 0:01:05.1]} 25... Qd7 {[%clk 0:01:15.1]} 26. Ra5 {[%clk 0:00:34.2]} 26...
Rb6 {[%clk 0:00:26.2]} 27. e5 {[%clk 0:00:24.3]} 27... Rc6 {[%clk 0:00:20.2]}
28. Ra8 {[%clk 0:00:25.2]} 28... Rb6 {[%clk 0:00:18.3]} 29. Rxd8+ {[%clk
0:00:11.4]} 29... Qxd8 {[%clk 0:00:20.2]} 30. Qa8 {[%clk 0:00:12.5]} 30... Rb8
{[%clk 0:00:20.4]} 31. Qc6 {[%clk 0:00:13]} 31... g6 {[%clk 0:00:13]} 32. Qxc4
{[%clk 0:00:14]} 32... Kg7 {[%clk 0:00:14.2]} 33. Qc6 {[%clk 0:00:14.9]} 33...
Rb6 {[%clk 0:00:15.2]} 34. Qc5 {[%clk 0:00:12]} 34... Qd7 {[%clk 0:00:14.5]} 35.
Ra7 {[%clk 0:00:10.5]} 35... Rc6 {[%clk 0:00:15.8]} 36. Qb4 {[%clk 0:00:08.8]}
36... Qd5+ {[%clk 0:00:16.8]} 37. Kh3 {[%clk 0:00:07.5]} 37... h5 {[%clk
0:00:14.6]} 38. Ra8 {[%clk 0:00:07.7]} 38... Rb6 {[%clk 0:00:15.7]} 39. Qf8+
{[%clk 0:00:08.5]} 1-0

[Event "*** Titled Tuesday Blitz"]
[Site "Chess.com"]
[Date "2020.01.07"]
[Round "3"]
[White "Blagorod"]
[Black "dragos420"]
[Result "0-1"]
[WhiteElo "2098"]
[BlackElo "2436"]
[TimeControl "180+2"]
[EndTime "13:39:26 PST"]
[Termination "dragos420 won on time"]

1. e4 {[%clk 0:03:01.9]} 1... e5 {[%clk 0:02:58]} 2. Nf3 {[%clk 0:03:02.3]} 2...
Nc6 {[%clk 0:02:58.8]} 3. Bb5 {[%clk 0:03:03]} 3... a6 {[%clk 0:02:58.2]} 4. Ba4
{[%clk 0:03:04.2]} 4... g6 {[%clk 0:02:59.8]} 5. O-O {[%clk 0:03:03.8]} 5...
Nge7 {[%clk 0:03:01.3]} 6. c3 {[%clk 0:03:04.6]} 6... Bg7 {[%clk 0:03:02.5]} 7.
d4 {[%clk 0:02:59.2]} 7... exd4 {[%clk 0:03:04.4]} 8. cxd4 {[%clk 0:03:00.2]}
8... b5 {[%clk 0:03:00.3]} 9. Bb3 {[%clk 0:02:55.4]} 9... O-O {[%clk 0:02:56.9]}
10. a4 {[%clk 0:02:52.8]} 10... b4 {[%clk 0:02:55.6]} 11. a5 {[%clk 0:02:52.9]}
11... d6 {[%clk 0:02:54.1]} 12. h3 {[%clk 0:02:42.5]} 12... Rb8 {[%clk
0:02:41.2]} 13. Nbd2 {[%clk 0:02:22.3]} 13... Nxd4 {[%clk 0:02:40.6]} 14. Nxd4
{[%clk 0:02:16.7]} 14... Bxd4 {[%clk 0:02:42.5]} 15. Nc4 {[%clk 0:02:06.4]}
15... Bg7 {[%clk 0:02:42.7]} 16. f4 {[%clk 0:02:05.9]} 16... d5 {[%clk
0:02:36.6]} 17. Ne5 {[%clk 0:01:52.1]} 17... Bxe5 {[%clk 0:02:27.7]} 18. fxe5
{[%clk 0:01:49.7]} 18... Be6 {[%clk 0:02:25.2]} 19. Bh6 {[%clk 0:01:19.7]} 19...
Re8 {[%clk 0:02:15.6]} 20. Qe1 {[%clk 0:00:42.4]} 20... dxe4 {[%clk 0:02:01.2]}
21. Bxe6 {[%clk 0:00:38.8]} 21... fxe6 {[%clk 0:02:03.1]} 22. Rd1 {[%clk
0:00:39.8]} 22... Nd5 {[%clk 0:02:00.5]} 23. Qxe4 {[%clk 0:00:32.9]} 23... Qe7
{[%clk 0:02:01]} 24. Qf3 {[%clk 0:00:16.9]} 24... c6 {[%clk 0:01:44.3]} 25. Rd2
{[%clk 0:00:17.9]} 25... Qa7+ {[%clk 0:01:01.2]} 26. Kh2 {[%clk 0:00:13.8]}
26... Qc7 {[%clk 0:00:55.3]} 27. Rdf2 {[%clk 0:00:12.6]} 27... Qxe5+ {[%clk
0:00:42.5]} 28. g3 {[%clk 0:00:14.1]} 28... Qf5 {[%clk 0:00:34.3]} 29. Qb3
{[%clk 0:00:11.3]} 29... Qh5 {[%clk 0:00:29.9]} 30. Qd3 {[%clk 0:00:07.8]} 30...
Qxh6 {[%clk 0:00:19.4]} 31. Qxa6 {[%clk 0:00:08.8]} 31... Rf8 {[%clk 0:00:18.8]}
32. Qxc6 {[%clk 0:00:06.2]} 32... g5 {[%clk 0:00:13.8]} 33. a6 {[%clk
0:00:05.3]} 33... Rxf2+ {[%clk 0:00:12.7]} 34. Rxf2 {[%clk 0:00:06.3]} 34... Rf8
{[%clk 0:00:14.1]} 35. Rxf8+ {[%clk 0:00:03]} 35... Qxf8 {[%clk 0:00:15.7]} 36.
Qxe6+ {[%clk 0:00:03.6]} 36... Qf7 {[%clk 0:00:17.1]} 37. Qc8+ {[%clk
0:00:03.1]} 37... Kg7 {[%clk 0:00:18.1]} 38. Kg2 {[%clk 0:00:02.3]} 38... Ne3+
{[%clk 0:00:18.4]} 0-1

[Event "*** Titled Tuesday Blitz"]
[Site "Chess.com"]
[Date "2020.01.07"]
[Round "3"]
[White "CzechmVIII"]
[Black "garfield_pg"]
[Result "1-0"]
[WhiteElo "2161"]
[BlackElo "2338"]
[TimeControl "180+2"]
[EndTime "13:39:26 PST"]
[Termination "CzechmVIII won on time"]

1. e4 {[%clk 0:03:01.9]} 1... c5 {[%clk 0:03:00.2]} 2. Nf3 {[%clk 0:03:02.7]}
2... a6 {[%clk 0:03:00.7]} 3. Nc3 {[%clk 0:03:03]} 3... d6 {[%clk 0:02:59.4]} 4.
d4 {[%clk 0:03:01.8]} 4... cxd4 {[%clk 0:03:00.7]} 5. Nxd4 {[%clk 0:03:03.4]}
5... Nf6 {[%clk 0:03:02]} 6. Bg5 {[%clk 0:03:04.4]} 6... e6 {[%clk 0:02:55.6]}
7. f4 {[%clk 0:03:04.6]} 7... Nc6 {[%clk 0:02:37.1]} 8. Nxc6 {[%clk 0:03:01.5]}
8... bxc6 {[%clk 0:02:37.4]} 9. e5 {[%clk 0:03:00.7]} 9... dxe5 {[%clk
0:02:35.6]} 10. Qxd8+ {[%clk 0:02:48]} 10... Kxd8 {[%clk 0:02:36.1]} 11. fxe5
{[%clk 0:02:45.8]} 11... h6 {[%clk 0:02:37.3]} 12. Bh4 {[%clk 0:02:37.8]} 12...
g5 {[%clk 0:02:36.4]} 13. Bf2 {[%clk 0:02:30.8]} 13... Nd5 {[%clk 0:02:36]} 14.
Ne4 {[%clk 0:02:31.6]} 14... Kc7 {[%clk 0:02:14.3]} 15. O-O-O {[%clk 0:02:20]}
15... Nf4 {[%clk 0:01:46.8]} 16. h4 {[%clk 0:01:52.9]} 16... g4 {[%clk
0:01:38.9]} 17. h5 {[%clk 0:01:50.2]} 17... Bg7 {[%clk 0:01:18.7]} 18. Nd6
{[%clk 0:01:37.2]} 18... Rf8 {[%clk 0:01:11.1]} 19. Nc4 {[%clk 0:01:38.1]} 19...
Nd5 {[%clk 0:01:07.5]} 20. Bc5 {[%clk 0:01:34.6]} 20... Rd8 {[%clk 0:01:07.5]}
21. Bd6+ {[%clk 0:01:32.2]} 21... Kd7 {[%clk 0:01:05.1]} 22. Be2 {[%clk
0:01:22.2]} 22... a5 {[%clk 0:01:03.8]} 23. Rxd5 {[%clk 0:01:18.2]} 23... cxd5
{[%clk 0:01:00]} 24. Nb6+ {[%clk 0:01:18.8]} 24... Kc6 {[%clk 0:01:01.3]} 25.
Nxa8 {[%clk 0:01:20]} 25... Rd7 {[%clk 0:00:30.4]} 26. Nc7 {[%clk 0:01:12.3]}
26... Rxc7 {[%clk 0:00:30.9]} 27. Bxc7 {[%clk 0:01:13.5]} 27... Kxc7 {[%clk
0:00:31.9]} 28. Bxg4 {[%clk 0:01:12.3]} 28... Bxe5 {[%clk 0:00:32.7]} 29. Rf1
{[%clk 0:01:08.4]} 29... f5 {[%clk 0:00:31.7]} 30. Be2 {[%clk 0:01:09.4]} 30...
Bd7 {[%clk 0:00:24.9]} 31. c4 {[%clk 0:01:03.5]} 31... d4 {[%clk 0:00:21.3]} 32.
b3 {[%clk 0:00:57]} 32... Bf6 {[%clk 0:00:16.2]} 33. Bd3 {[%clk 0:00:55.5]}
33... Bg5+ {[%clk 0:00:15.9]} 34. Kc2 {[%clk 0:00:54.4]} 34... Kd6 {[%clk
0:00:17.1]} 35. a3 {[%clk 0:00:53.9]} 35... Ke5 {[%clk 0:00:17.6]} 36. g3 {[%clk
0:00:46.7]} 36... Kf6 {[%clk 0:00:17.8]} 37. g4 {[%clk 0:00:39]} 37... f4 {[%clk
0:00:15]} 38. Be4 {[%clk 0:00:40.2]} 38... e5 {[%clk 0:00:15.8]} 39. Kd3 {[%clk
0:00:39.1]} 39... Bxg4 {[%clk 0:00:16.2]} 40. b4 {[%clk 0:00:39.1]} 40... axb4
{[%clk 0:00:17.2]} 41. axb4 {[%clk 0:00:40.4]} 41... Bxh5 {[%clk 0:00:14]} 42.
b5 {[%clk 0:00:41.4]} 42... Be8 {[%clk 0:00:13.2]} 43. b6 {[%clk 0:00:40.9]} 1-0

[Event "*** Titled Tuesday Blitz"]
[Site "Chess.com"]
[Date "2020.01.07"]
[Round "3"]
[White "Naruto-K"]
[Black "GremioPrudente"]
[Result "1-0"]
[WhiteElo "2493"]
[BlackElo "2261"]
[TimeControl "180+2"]
[EndTime "13:39:32 PST"]
[Termination "Naruto-K won on time"]

1. d4 {[%clk 0:02:41.4]} 1... e6 {[%clk 0:03:01.9]} 2. Nf3 {[%clk 0:02:39.8]}
2... d5 {[%clk 0:03:02.3]} 3. Bf4 {[%clk 0:02:39.5]} 3... Bd6 {[%clk 0:03:01]}
4. Bg3 {[%clk 0:02:39.4]} 4... Nf6 {[%clk 0:03:00.8]} 5. e3 {[%clk 0:02:40]}
5... O-O {[%clk 0:03:01.6]} 6. Nbd2 {[%clk 0:02:37.8]} 6... c5 {[%clk
0:02:57.6]} 7. c3 {[%clk 0:02:38.1]} 7... Qc7 {[%clk 0:02:58.3]} 8. Bd3 {[%clk
0:02:32.3]} 8... Nbd7 {[%clk 0:02:59.1]} 9. e4 {[%clk 0:02:33.4]} 9... dxe4
{[%clk 0:02:57.2]} 10. Nxe4 {[%clk 0:02:32.6]} 10... Nxe4 {[%clk 0:02:57.3]} 11.
Bxe4 {[%clk 0:02:32.6]} 11... Nf6 {[%clk 0:02:51.4]} 12. Bc2 {[%clk 0:02:33]}
12... b6 {[%clk 0:02:39.4]} 13. dxc5 {[%clk 0:02:32.2]} 13... Bxg3 {[%clk
0:02:31.7]} 14. hxg3 {[%clk 0:02:33]} 14... Qxc5 {[%clk 0:02:32.2]} 15. Qe2
{[%clk 0:01:46.9]} 15... Bb7 {[%clk 0:02:26]} 16. Rd1 {[%clk 0:01:31.9]} 16...
Bxf3 {[%clk 0:02:20.6]} 17. gxf3 {[%clk 0:01:31.7]} 17... Rad8 {[%clk
0:02:18.8]} 18. Rxd8 {[%clk 0:01:31.7]} 18... Rxd8 {[%clk 0:02:19.2]} 19. Qe3
{[%clk 0:01:26.9]} 19... Qxe3+ {[%clk 0:02:11]} 20. fxe3 {[%clk 0:01:26.2]}
20... g6 {[%clk 0:02:08.5]} 21. Ke2 {[%clk 0:01:22.8]} 21... h5 {[%clk
0:02:09.4]} 22. Rh4 {[%clk 0:01:21.6]} 22... Kf8 {[%clk 0:02:08.8]} 23. Rc4
{[%clk 0:01:19.1]} 23... Ke7 {[%clk 0:02:07.7]} 24. Ba4 {[%clk 0:01:17.9]} 24...
Kd6 {[%clk 0:01:52.4]} 25. Rc6+ {[%clk 0:01:16]} 25... Kd5 {[%clk 0:01:06.4]}
26. e4+ {[%clk 0:00:50.6]} 26... Nxe4 {[%clk 0:00:55.8]} 27. fxe4+ {[%clk
0:00:51.1]} 27... Kxe4 {[%clk 0:00:57.7]} 28. Rc7 {[%clk 0:00:50.5]} 28... f5
{[%clk 0:00:56]} 29. Rxa7 {[%clk 0:00:46.6]} 29... f4 {[%clk 0:00:54]} 30. Bc2+
{[%clk 0:00:43.8]} 30... Ke5 {[%clk 0:00:50.4]} 31. gxf4+ {[%clk 0:00:44.9]}
31... Kxf4 {[%clk 0:00:51.3]} 32. Rf7+ {[%clk 0:00:42.9]} 32... Kg5 {[%clk
0:00:50.1]} 33. Rg7 {[%clk 0:00:44]} 33... Ra8 {[%clk 0:00:45.5]} 34. Rxg6+
{[%clk 0:00:45]} 34... Kh4 {[%clk 0:00:45]} 35. a3 {[%clk 0:00:46]} 35... e5
{[%clk 0:00:44.7]} 36. Rxb6 {[%clk 0:00:44.4]} 36... Kg3 {[%clk 0:00:21.5]} 37.
Ke3 {[%clk 0:00:44.7]} 37... h4 {[%clk 0:00:21.4]} 38. Rg6+ {[%clk 0:00:45.5]}
38... Kh2 {[%clk 0:00:21.7]} 39. Rg2+ {[%clk 0:00:44.6]} 39... Kxg2 {[%clk
0:00:21.3]} 40. Be4+ {[%clk 0:00:45.2]} 40... Kg1 {[%clk 0:00:22.1]} 41. Bxa8
{[%clk 0:00:47.1]} 41... h3 {[%clk 0:00:23]} 42. a4 {[%clk 0:00:48.5]} 42... h2
{[%clk 0:00:23.8]} 43. a5 {[%clk 0:00:50.4]} 43... e4 {[%clk 0:00:24.8]} 44.
Bxe4 {[%clk 0:00:50.8]} 44... h1=Q {[%clk 0:00:24.9]} 45. Bxh1 {[%clk
0:00:51.2]} 45... Kxh1 {[%clk 0:00:25.8]} 46. a6 {[%clk 0:00:53.1]} 46... Kg2
{[%clk 0:00:25.7]} 47. a7 {[%clk 0:00:55]} 47... Kg3 {[%clk 0:00:07.7]} 48. a8=Q
{[%clk 0:00:56.9]} 1-0